Workbook

Sheet Лист1
A1: Школа | B1: МБОУ "Краснокамская адаптивная школа-интернат" | E1: Отд./корп | I1: День | J1: 2022-04-08
A3: Воспитанники интерната 12-18 лет
A5: Прием пищи | B5: Раздел | C5: № рец. | D5: Блюдо | E5: Выход, г | F5: Цена | G5: Калорийность | H5: Белки | I5: Жиры | J5: Углеводы
A6: Завтрак | B6: гор.блюдо | C6: 267/2013 | D6: Каша пшенная молочная жидкая | E6: 250 | G6: 303.90 | H6: 9.70 | I6: 9.60 | J6: 44.70
B7: закуска | C7: 90/2013 | D7: бутерброд с сыром (1-й вар.) | E7: 50 | G7: 166.00 | H7: 7.70 | I7: 10.10 | J7: 11.00
B8: хлеб бел. | C8: 108/2013 | D8: хлеб пшеничный | E8: 60 | G8: 140.60 | H8: 4.60 | I8: 0.50 | J8: 29.50
B9: гор.напиток | C9: 496/2013 | D9: какао с молоком | E9: 200 | G9: 76.20 | H9: 2.40 | I9: 1.80 | J9: 12.60
E10: Итого: | G10: =SUM(G6:G9) -> 686.70 | H10: =SUM(H6:H9) -> 24.40 | I10: =SUM(I6:I9) -> 22.00 | J10: =SUM(J6:J9) -> 97.80
A11: Обед | B11: закуска | C11: 61/2013 | D11: салат из моркови с зеленым горошком | E11: 100 | G11: 122.00 | H11: 1.90 | I11: 10.10 | J11: 5.90
B12: 1 блюдо | C12: 131/2013 | D12: свекольник со сметаной | E12: 250 | G12: 100.50 | H12: 2.30 | I12: 5.10 | J12: 11.30
B13: 2 блюдо | C13: 385/2013 | D13: рулет из говядины паровой | E13: 100 | G13: 200.00 | H13: 15.60 | I13: 12.30 | J13: 6.60
B14: гарнир | C14: 348/сб | D14: рагу овощное | E14: 180 | G14: 142.70 | H14: 4.70 | I14: 5.30 | J14: 19.00
B15: напиток | C15: 508/2013 | D15: компот из смеси с/фр | E15: 200 | G15: 95.00 | H15: 0.70 | I15: 0.10 | J15: 22.80
B16: хлеб бел. | C16: 108/2013 | D16: Хлеб пшеничный | E16: 60 | G16: 140.60 | H16: 4.60 | I16: 0.50 | J16: 29.50
B17: хлеб черн. | C17: 510/2013 | D17: Хлеб ржано-пшеничный | E17: 70 | G17: 160.90 | H17: 3.90 | I17: 0.80 | J17: 34.60
E19: Итого: | G19: =SUM(G11:G18) -> 961.70 | H19: =SUM(H11:H18) -> 33.70 | I19: 34.20 | J19: 129.70
A20: Полдник | B20: выпечка | C20: 567/2013 | D20: булочка российская | E20: 80 | G20: 270.70 | H20: 5.70 | I20: 6.70 | J20: 47.00
B21: фрукты | C21: 112/2013 | D21: яблоки | E21: 130 | G21: 50.80 | H21: 0.50 | I21: 0.50 | J21: 11.20
B22: напиток | C22: 002/2013 | D22: вит.нат."Витошка" | E22: 200 | G22: 75.00 | H22: 0.00 | I22: 0.00 | J22: 19.00
E24: Итого: | G24: =SUM(G20:G23) -> 396.50 | H24: =SUM(H20:H23) -> 6.20 | I24: 7.20 | J24: 77.20
B25: гор.блюдо | C25: 313/2013 | D25: запеканка из творога | E25: 270 | G25: 578.40 | H25: 45.50 | I25: 25.80 | J25: 41.00
B26: гор.напиток | C26: 481/2013 | D26: молоко сгущенное | E26: 50 | G26: 163.70 | H26: 3.60 | I26: 4.20 | J26: 27.80
B27: хлеб бел. | C27: 495/2013 | D27: чай с молоком | E27: 200 | G27: 81.00 | H27: 1.50 | I27: 1.30 | J27: 15.90
B28: хлеб черн. | C28: 108/2013 | D28: хлеб пшеничный | E28: 40 | G28: 93.80 | H28: 3.00 | I28: 0.30 | J28: 19.70
C29: 110/2013 | D29: хлеб ржано-пшеничный | E29: 50 | G29: 114.90 | H29: 2.80 | I29: 0.60 | J29: 24.70
E30: Итого: | G30: =SUM(G25:G29) -> 1031.80 | H30: =SUM(H25:H29) -> 56.40 | I30: =SUM(I25:I29) -> 32.20 | J30: =SUM(J25:J29) -> 129.10
A31: 2 ужин | B31: напиток | C31: 516/2013 | D31: ряженка | E31: 200 | G31: 127.86 | H31: 5.60 | I31: 8.00 | J31: 8.40
E32: Итого: | G32: =G31 -> 127.86 | H32: =H31 -> 5.60 | I32: 8.00 | J32: 8.40
E33: ВСЕГО: | G33: =SUM(G10+G19+G24+G30+G32) -> 3204.56 | H33: =SUM(H10+H19+H24+H30+H32) -> 126.30 | I33: =SUM(I10+I19+I24+I30+I32) -> 103.60 | J33: =SUM(J10+J19+J24+J30+J32) -> 442.20
A35: Приходящие учащиеся 12-18 лет
A38: Прием пищи | B38: Раздел | C38: № рец. | D38: Блюдо | E38: Выход, г | F38: Цена | G38: Калорийность | H38: Белки | I38: Жиры | J38: Углеводы
A39: Завтрак | B39: гор.блюдо | C39: 248/2013 | D39: каша гречневая вязкая | E39: 200 | G39: 283.00 | H39: 9.20 | I39: 12.90 | J39: 32.60
B40: закуска | C40: 100/2013 | D40: сыр сычужный твердый (порциями) | E40: 25 | G40: 89.50 | H40: 5.80 | I40: 7.40 | J40: 0.00
B41: хлеб бел. | C41: 108/2013 | D41: хлеб пшеничный | E41: 60 | G41: 140.60 | H41: 4.60 | I41: 0.50 | J41: 29.50
B42: гор.напиток | C42: 496/6 | D42: какао с молоком | E42: 200 | G42: 96.40 | H42: 3.60 | I42: 2.90 | J42: 14.00
E44: Итого: | G44: =SUM(G39:G43) -> 609.50 | H44: =SUM(H39:H43) -> 23.20 | I44: 23.70 | J44: 76.10
A45: Обед | B45: закуска | C45: 61/2013 | D45: салат из моркови с зеленым горошком | E45: 100 | G45: 122.00 | H45: 1.90 | I45: 10.10 | J45: 5.90
B46: 1 блюдо | C46: 131/2013 | D46: свекольник со сметаной | E46: 250 | G46: 100.50 | H46: 2.30 | I46: 5.10 | J46: 11.30
B47: 2 блюдо | C47: 385/2013 | D47: рулет из говядины паровой | E47: 100 | G47: 200.00 | H47: 15.60 | I47: 12.30 | J47: 6.60
B48: гарнир | C48: 348/сб | D48: рагу овощное | E48: 180 | G48: 142.70 | H48: 4.70 | I48: 5.30 | J48: 19.00
B49: напиток | C49: 508/2013 | D49: компот из смеси с/фр | E49: 200 | G49: 95.00 | H49: 0.70 | I49: 0.10 | J49: 22.80
B50: хлеб бел. | C50: 108/2013 | D50: Хлеб пшеничный | E50: 53 | G50: 124.30 | H50: 4.00 | I50: 0.40 | J50: 26.00
B51: хлеб черн. | C51: 510/2013 | D51: Хлеб ржано-пшеничный | E51: 40 | G51: 92.00 | H51: 2.20 | I51: 0.50 | J51: 19.80
E53: Итого: | G53: =SUM(G45:G52) -> 876.50 | H53: =SUM(H45:H52) -> 31.40 | I53: 33.80 | J53: 111.40
E54: ВСЕГО: | G54: =SUM(G44+G53) -> 1486.00 | H54: =SUM(H44+H53) -> 54.60 | I54: =SUM(I44+I53) -> 57.50 | J54: =SUM(J44+J53) -> 187.50
